fUST/lending_fUST_20260610
["ID","MTS","AMOUNT","RATE_DAILY","PERIOD"]
[424679558,1781043056000,-500.0,0.0001863,2]
[424679607,1781043056000,-606.99,0.00018904,2]
[424679577,1781043056000,-500.0,0.0001863,2]
[424679604,1781043056000,-500.0,0.00018904,2]
[424679638,1781043056000,-789.91,0.00018904,2]
[424679637,1781043056000,-500.0,0.00018904,2]
[424679639,1781043056000,-1028.41,0.00018904,2]
[424679642,1781043056000,-500.0,0.00018904,2]
[424679643,1781043056000,-500.0,0.00018904,2]
[424679640,1781043056000,-500.0,0.00018904,2]
[424679641,1781043056000,-500.0,0.00018904,2]
[424679644,1781043056000,-266.96,0.00018904,2]
[424679646,1781043056000,-500.0,0.00018904,2]
[424679650,1781043056000,-500.0,0.00018904,2]
[424679651,1781043056000,-2518.41,0.00018904,2]
[424679649,1781043056000,-1253.34,0.00018904,2]
[424679636,1781043056000,-500.0,0.00018904,2]
[424679645,1781043056000,-713.27,0.00018904,2]
[424679648,1781043056000,-10206.52,0.00018904,2]
[424679656,1781043056000,-1766.52,0.00018904,2]
[424679652,1781043056000,-500.0,0.00018904,2]
[424679654,1781043056000,-1013.37,0.00018904,2]
[424679655,1781043056000,-500.0,0.00018904,2]
[424679657,1781043056000,-500.0,0.00018904,2]
[424679659,1781043056000,-936.38,0.00018904,2]
[424679660,1781043056000,-500.0,0.00018904,2]
[424679658,1781043056000,-500.0,0.00018904,2]
[424679662,1781043056000,-500.0,0.00018904,2]
[424679661,1781043056000,-647.07,0.00018904,2]
[424679606,1781043056000,-500.0,0.00018904,2]
[424679647,1781043056000,-1221.11,0.00018904,2]
[424679635,1781043056000,-500.0,0.00018904,2]
[424679653,1781043056000,-500.0,0.00018904,2]
[424679633,1781043056000,-500.0,0.00018904,2]
[424679599,1781043056000,-641.17063042,0.00018633,2]
[424679634,1781043056000,-500.0,0.00018904,2]
[424679605,1781043056000,-752.5,0.00018904,2]
[424679603,1781043056000,-500.0,0.00018904,2]
[424679610,1781043056000,-500.0,0.00018904,2]
[424679611,1781043056000,-605.39,0.00018904,2]
[424679613,1781043056000,-500.0,0.00018904,2]
[424679616,1781043056000,-560.92214282,0.00018904,2]
[424679614,1781043056000,-610.8,0.00018904,2]
[424679615,1781043056000,-255.79,0.00018904,2]
[424679617,1781043056000,-500.0,0.00018904,2]
[424679618,1781043056000,-500.0,0.00018904,2]
[424679619,1781043056000,-500.0,0.00018904,2]
[424679612,1781043056000,-500.0,0.00018904,2]
[424679621,1781043056000,-829.68,0.00018904,2]
[424679632,1781043056000,-500.0,0.00018904,2]
[424679620,1781043056000,-543.13,0.00018904,2]
[424679630,1781043056000,-500.0,0.00018904,2]
[424679631,1781043056000,-500.0,0.00018904,2]
[424679625,1781043056000,-1444.43,0.00018904,2]
[424679624,1781043056000,-684.17,0.00018904,2]
[424679629,1781043056000,-321.39,0.00018904,2]
[424679627,1781043056000,-500.0,0.00018904,2]
[424679626,1781043056000,-500.0,0.00018904,2]
[424679622,1781043056000,-575.94,0.00018904,2]
[424679623,1781043056000,-500.0,0.00018904,2]
[424679628,1781043056000,-500.0,0.00018904,2]
[424679681,1781043057000,-717.34,0.00018904,2]
[424679686,1781043057000,-634.56,0.00018904,2]
[424679689,1781043057000,-500.0,0.00018904,2]
[424679687,1781043057000,-500.0,0.00018904,2]
[424679688,1781043057000,-500.0,0.00018904,2]
[424679690,1781043057000,-500.0,0.00018904,2]
[424679692,1781043057000,-1185.65,0.00018904,2]
[424679691,1781043057000,-657.67,0.00018904,2]
[424679701,1781043057000,-1412.51,0.000191,2]
[424679699,1781043057000,-261.498272,0.00019063,2]
[424679698,1781043057000,-665.997251,0.00019063,2]
[424679693,1781043057000,-935.81,0.00018904,2]
[424679700,1781043057000,-1412.519,0.000191,2]
[424679695,1781043057000,-825.0,0.00019059,2]
[424679703,1781043057000,-394.3201,0.000191,2]
[424679683,1781043057000,-500.0,0.00018904,2]
[424679702,1781043057000,-646.54,0.000191,2]
[424679694,1781043057000,-825.0,0.0001904,2]
[424679684,1781043057000,-766.89,0.00018904,2]
[424679671,1781043057000,-1786.31,0.00018904,2]
[424679682,1781043057000,-500.0,0.00018904,2]
[424679697,1781043057000,-412.998625,0.00019063,2]
[424679666,1781043057000,-1333.91,0.00018904,2]
[424679665,1781043057000,-927.22,0.00018904,2]
[424679664,1781043057000,-1288.06,0.00018904,2]
[424679663,1781043057000,-500.0,0.00018904,2]
[424679667,1781043057000,-2640.01,0.00018904,2]
[424679668,1781043057000,-957.15,0.00018904,2]
[424679669,1781043057000,-550.15,0.00018904,2]
[424679685,1781043057000,-1592.36,0.00018904,2]
[424679674,1781043057000,-2629.36,0.00018904,2]
[424679672,1781043057000,-500.0,0.00018904,2]
[424679676,1781043057000,-500.0,0.00018904,2]
[424679675,1781043057000,-1939.16,0.00018904,2]
[424679670,1781043057000,-2459.49,0.00018904,2]
[424679677,1781043057000,-699.9,0.00018904,2]
[424679679,1781043057000,-3267.51,0.00018904,2]
[424679678,1781043057000,-279.41,0.00018904,2]
[424679680,1781043057000,-500.0,0.00018904,2]
[424679673,1781043057000,-625.15,0.00018904,2]
[424679696,1781043057000,-160.0,0.00019063,2]
[424679716,1781043057000,-610.8,0.00019178,2]
[424679706,1781043057000,-500.0,0.00019178,2]
[424679737,1781043057000,-300.0,0.00019178,2]
[424679736,1781043057000,-500.0,0.00019178,2]
[424679734,1781043057000,-500.0,0.00019178,2]
[424679735,1781043057000,-500.0,0.00019178,2]
[424679733,1781043057000,-500.0,0.00019178,2]
[424679729,1781043057000,-500.0,0.00019178,2]
[424679728,1781043057000,-582.58011648,0.00019178,2]
[424679730,1781043057000,-500.0,0.00019178,2]
[424679732,1781043057000,-500.0,0.00019178,2]
[424679731,1781043057000,-500.0,0.00019178,2]
[424679739,1781043057000,-1028.41,0.00019178,2]
[424679738,1781043057000,-789.91,0.00019178,2]
[424679704,1781043057000,-2280.6201,0.000191,2]
[424679742,1781043057000,-500.0,0.00019178,2]
[424679743,1781043057000,-395.15,0.00019178,2]
[424679745,1781043057000,-500.0,0.00019178,2]
[424679744,1781043057000,-713.27,0.00019178,2]
[424679746,1781043057000,-253.49527901,0.00019178,2]
[424679740,1781043057000,-500.0,0.00019178,2]
[424679722,1781043057000,-575.94,0.00019178,2]
[424679741,1781043057000,-500.0,0.00019178,2]
[424679727,1781043057000,-500.0,0.00019178,2]
[424679707,1781043057000,-500.0,0.00019178,2]
[424679708,1781043057000,-752.5,0.00019178,2]
[424679705,1781043057000,-151.0,0.00019167,2]
[424679709,1781043057000,-402.39372099,0.00019178,2]
[424679710,1781043057000,-606.99,0.00019178,2]
[424679712,1781043057000,-500.0,0.00019178,2]
[424679711,1781043057000,-668.56,0.00019178,2]
[424679713,1781043057000,-500.0,0.00019178,2]
[424679726,1781043057000,-500.0,0.00019178,2]
[424679714,1781043057000,-605.39,0.00019178,2]
[424679718,1781043057000,-500.0,0.00019178,2]
[424679717,1781043057000,-500.0,0.00019178,2]
[424679720,1781043057000,-543.13,0.00019178,2]
[424679724,1781043057000,-684.17,0.00019178,2]
[424679721,1781043057000,-829.68,0.00019178,2]
[424679719,1781043057000,-522.86,0.00019178,2]
[424679725,1781043057000,-1444.43,0.00019178,2]
[424679723,1781043057000,-500.0,0.00019178,2]
[424679715,1781043057000,-500.0,0.00019178,2]
[424679747,1781043058000,-405.04908581,0.00014835,2]
[424679750,1781043058000,-334.40086469,0.00016712,2]
[424679749,1781043058000,-500.0,0.00016438,2]
[424679752,1781043058000,-309.02132789,0.00018068,2]
[424679753,1781043058000,-445.7995368,0.00018356,2]
[424679751,1781043058000,-245.17913531,0.00016712,2]
[424679748,1781043058000,-617.4,0.00016438,2]
[424679764,1781043383000,178.5,8.4e-05,2]
[424679767,1781043384000,178.53,8.4e-05,2]
[424679766,1781043384000,178.5,8.4e-05,2]
[424679765,1781043384000,178.5,8.4e-05,2]
[424679843,1781044232000,-242.89274588,0.00015474,2]
[424679824,1781044232000,-159.95073808,0.00015225,2]
[424679806,1781044232000,-423.0,0.0001,5]
[424679832,1781044232000,-309.5072718,0.00015474,2]
[424679831,1781044232000,-152.0,0.00015451,7]
[424679829,1781044232000,-378.08335911,0.00015449,2]
[424679825,1781044232000,-332.93707616,0.00015449,2]
[424679827,1781044232000,-300.32047863,0.00015449,2]
[424679810,1781044232000,-485.489841,0.00014507,2]
[424679815,1781044232000,-150.16023932,0.00015148,2]
[424679838,1781044232000,-411.39711273,0.00015474,2]
[424679813,1781044232000,-166.55348189,0.00014695,2]
[424679820,1781044232000,-180.22648281,0.00015172,2]
[424679817,1781044232000,-333.10696378,0.00015148,2]
[424679808,1781044232000,-5000.0,0.00014218,2]
[424679811,1781044232000,-158.09058262,0.00014695,2]
[424679822,1781044232000,-209.07600213,0.00015172,2]
[424679834,1781044232000,-163.26582059,0.00015474,2]
[424679818,1781044232000,-194.26414762,0.00015148,2]
[424679840,1781044232000,-158.01114909,0.00015474,2]
[424679836,1781044232000,-427.35732168,0.00015474,2]
[424679874,1781044232000,-91.31882106,0.00016337,2]
[424679872,1781044232000,-500.0,0.00016337,2]
[424679870,1781044232000,-500.0,0.00016337,2]
[424679868,1781044232000,-97.78117894,0.00016337,2]
[424679859,1781044232000,-316.18116524,0.00016225,2]
[424679851,1781044232000,-319.90147616,0.00015527,2]
[424679864,1781044232000,-500.0,0.00016337,2]
[424679866,1781044232000,-402.21882106,0.00016337,2]
[424679849,1781044232000,-230.42325555,0.00015474,2]
[424679842,1781044232000,-216.96428918,0.00015474,2]
[424679845,1781044232000,-418.15200425,0.00015474,2]
[424679855,1781044232000,-20.46401163,0.00015779,2]
[424679847,1781044232000,-192.19809676,0.00015474,2]
[424679862,1781044232000,-170.738493,0.00016298,2]
[424679853,1781044232000,-202.27102689,0.00015779,2]
[424679857,1781044232000,-620.8098348,0.00015971,2]
[424679861,1781044232000,-2292.60049501,0.00016254,2]
[424680139,1781044238000,-479.85433737,0.00016337,2]
[424680127,1781044238000,-159.96134033,0.00015968,2]
[424680125,1781044238000,-245.58577127,0.00015968,2]
[424680131,1781044238000,-408.68117894,0.00016337,2]
[424680129,1781044238000,-372.77365059,0.00015968,2]
[424680134,1781044238000,-500.0,0.00016337,2]
[424680132,1781044238000,-500.0,0.00016337,2]
[424680140,1781044238000,-500.0,0.00016337,2]
[424680136,1781044238000,-500.0,0.00016337,2]
[424680144,1781044238000,-500.0,0.00016337,2]
[424680149,1781044238000,-500.0,0.00016337,2]
[424680165,1781044238000,-67596.80594181,0.00016338,2]
[424680152,1781044238000,-500.0,0.00016337,2]
[424680151,1781044238000,-500.0,0.00016337,2]
[424680148,1781044238000,-635.89803616,0.00016337,2]
[424680154,1781044238000,-500.0,0.00016337,2]
[424680146,1781044238000,-500.0,0.00016337,2]
[424680156,1781044238000,-33532.30279624,0.00016338,2]
[424680142,1781044238000,-500.0,0.00016337,2]
[424680279,1781044240000,-303.30071407,0.00016338,2]
[424680278,1781044240000,-673.94304487,0.00016338,2]
[424680299,1781044246000,-3845.34453243,0.00016175,2]
[424680335,1781045352000,-200.91,0.0001,7]
[424680361,1781045432000,-5000.0,0.00014844,2]
[424680363,1781045432000,-166.55348189,0.00015146,2]
[424680365,1781045432000,-158.09058262,0.00015148,2]
[424680367,1781045432000,-355.454475,0.00015397,2]
[424680356,1781045432000,-42.65119119,0.0001,7]
[424680369,1781045432000,-388.52829523,0.00015447,2]
[424680371,1781045432000,-316.18116523,0.00015449,2]
[424680357,1781045432000,-285.98094712,0.000108,7]
[424680373,1781045432000,-188.33426458,0.00016189,7]
[424680381,1781045432000,-500.0,0.00016337,2]
[424680374,1781045432000,-360.45296561,0.00016227,2]
[424680376,1781045432000,-500.0,0.00016337,2]
[424680385,1781045432000,-2006.02543316,0.00016338,2]
[424680383,1781045432000,-302.57863826,0.00016337,2]
[424680378,1781045432000,-500.0,0.00016337,2]
[424680379,1781045432000,-203.6426836,0.00016337,2]
[424680387,1781045432000,-1364.99717514,0.00016338,2]
[424680389,1781045432000,-1580.67792983,0.00016338,2]
[424680360,1781045432000,-79.36083968,0.000108,7]
[424680452,1781045438000,-356.0,0.00016338,2]
[424680624,1781045443000,-500.0,0.00016437,2]
[424680623,1781045443000,-500.0,0.00016437,2]
[424680621,1781045443000,-500.0,0.00016437,2]
[424680631,1781045443000,-500.0,0.00016438,2]
[424680622,1781045443000,-500.0,0.00016437,2]
[424680632,1781045443000,-160.59,0.00016438,2]
[424680613,1781045443000,-9863.4699066,0.00016338,2]
[424680617,1781045443000,-500.0,0.00016437,2]
[424680614,1781045443000,-500.0,0.00016437,2]
[424680619,1781045443000,-500.0,0.00016437,2]
[424680615,1781045443000,-500.0,0.00016437,2]
[424680616,1781045443000,-500.0,0.00016437,2]
[424680625,1781045443000,-500.0,0.00016437,2]
[424680620,1781045443000,-500.0,0.00016437,2]
[424680627,1781045443000,-500.0,0.00016438,2]
[424680618,1781045443000,-595.12862531,0.00016437,2]
[424680626,1781045443000,-600.0,0.00016437,2]
[424680638,1781045443000,-500.0,0.00016438,2]
[424680630,1781045443000,-500.0,0.00016438,2]
[424680636,1781045443000,-500.0,0.00016438,2]
[424680639,1781045443000,-500.0,0.00016438,2]
[424680642,1781045443000,-500.0,0.00016438,2]
[424680643,1781045443000,-500.0,0.00016438,2]
[424680637,1781045443000,-500.0,0.00016438,2]
[424680635,1781045443000,-500.0,0.00016438,2]
[424680640,1781045443000,-500.0,0.00016438,2]
[424680634,1781045443000,-500.0,0.00016438,2]
[424680641,1781045443000,-500.0,0.00016438,2]
[424680633,1781045443000,-500.0,0.00016438,2]
[424680628,1781045443000,-500.0,0.00016438,2]
[424680629,1781045443000,-500.0,0.00016438,2]
[424680644,1781045443000,-511.79,0.00016438,2]
[424680646,1781045444000,-500.0,0.00016438,2]
[424680645,1781045444000,-500.0,0.00016438,2]
[424680654,1781045444000,-500.0,0.00016438,2]
[424680650,1781045444000,-500.0,0.00016438,2]
[424680648,1781045444000,-500.0,0.00016438,2]
[424680653,1781045444000,-500.0,0.00016438,2]
[424680657,1781045444000,-161.59146789,0.00016438,2]
[424680649,1781045444000,-500.0,0.00016438,2]
[424680652,1781045444000,-579.03,0.00016438,2]
[424680651,1781045444000,-500.0,0.00016438,2]
[424680655,1781045444000,-782.4,0.00016438,2]
[424680656,1781045444000,-500.0,0.00016438,2]
[424680647,1781045444000,-500.0,0.00016438,2]
[424681285,1781046643000,-443.87121533,0.00014013,2]
[424685002,1781047832000,-465.64545446,0.00012016,2]
[424685001,1781047832000,-5000.0,0.00011895,2]
[424685009,1781047832000,-394.94501961,0.00012016,2]
[424685010,1781047832000,-300.0,0.00012149,2]
[424685012,1781047832000,-584.95569084,0.0001215,2]
[424685016,1781047832000,-1958.76259704,0.0001215,2]
[424685149,1781047839000,-500.0,0.00013391,2]
[424685151,1781047839000,-500.0,0.00013391,2]
[424685154,1781047839000,-500.0,0.00013391,2]
[424685147,1781047839000,-500.0,0.00013391,2]
[424685158,1781047839000,-500.0,0.00013391,2]
[424685153,1781047839000,-500.0,0.00013391,2]
[424685156,1781047839000,-500.0,0.00013391,2]
[424685162,1781047839000,-500.0,0.00013391,2]
[424685160,1781047839000,-500.0,0.00013391,2]
[424685165,1781047839000,-500.0,0.00013391,2]
[424685163,1781047839000,-500.0,0.00013391,2]
[424685167,1781047839000,-500.0,0.00013391,2]
[424685177,1781047839000,-500.0,0.00013391,2]
[424685194,1781047839000,-500.0,0.00013393,2]
[424685146,1781047839000,-500.0,0.00013391,2]
[424685174,1781047839000,-500.0,0.00013391,2]
[424685179,1781047839000,-500.0,0.00013391,2]
[424685176,1781047839000,-500.0,0.00013391,2]
[424685169,1781047839000,-500.0,0.00013391,2]
[424685172,1781047839000,-500.0,0.00013391,2]
[424685188,1781047839000,-500.0,0.00013391,2]
[424685181,1781047839000,-500.0,0.00013391,2]
[424685183,1781047839000,-500.0,0.00013391,2]
[424685185,1781047839000,-500.0,0.00013391,2]
[424685186,1781047839000,-188.37215566,0.00013391,2]
[424685190,1781047839000,-500.0,0.00013391,2]
[424685201,1781047839000,-412.60376867,0.00013882,2]
[424685170,1781047839000,-500.0,0.00013391,2]
[424685132,1781047839000,-500.0,0.00013391,2]
[424685110,1781047839000,-500.0,0.00013391,2]
[424685127,1781047839000,-500.0,0.00013391,2]
[424685206,1781047839000,-500.0,0.00013941,2]
[424685095,1781047839000,-275.76255146,0.00013329,2]
[424685094,1781047839000,-262.24934441,0.0001306,2]
[424685097,1781047839000,-254.09409518,0.00013391,2]
[424685088,1781047839000,-2456.28171212,0.00012029,2]
[424685092,1781047839000,-210.86110537,0.00012895,2]
[424685090,1781047839000,-350.42513605,0.00012648,2]
[424685099,1781047839000,-500.0,0.00013391,2]
[424685101,1781047839000,-500.0,0.00013391,2]
[424685103,1781047839000,-500.0,0.00013391,2]
[424685105,1781047839000,-500.0,0.00013391,2]
[424685108,1781047839000,-372.3503575,0.00013391,2]
[424685112,1781047839000,-322.0010541,0.00013391,2]
[424685129,1781047839000,-575.15253359,0.00013391,2]
[424685106,1781047839000,-408.31265283,0.00013391,2]
[424685117,1781047839000,-500.0,0.00013391,2]
[424685119,1781047839000,-500.0,0.00013391,2]
[424685121,1781047839000,-500.0,0.00013391,2]
[424685116,1781047839000,-500.0,0.00013391,2]
[424685136,1781047839000,-500.0,0.00013391,2]
[424685134,1781047839000,-500.0,0.00013391,2]
[424685137,1781047839000,-500.0,0.00013391,2]
[424685139,1781047839000,-500.0,0.00013391,2]
[424685142,1781047839000,-500.0,0.00013391,2]
[424685141,1781047839000,-500.0,0.00013391,2]
[424685125,1781047839000,-500.0,0.00013391,2]
[424685130,1781047839000,-500.0,0.00013391,2]
[424685123,1781047839000,-500.0,0.00013391,2]
[424685114,1781047839000,-500.0,0.00013391,2]
[424685195,1781047839000,-1139.85889852,0.00013393,2]
[424685254,1781047839000,-190.511213,0.00014808,2]
[424685204,1781047839000,-1860.79321558,0.00013895,2]
[424685259,1781047839000,-606.86815313,0.00015077,2]
[424685261,1781047839000,-190.511213,0.00015431,2]
[424685263,1781047839000,-500.0,0.00015445,2]
[424685270,1781047839000,-158.71718775,0.00015446,2]
[424685279,1781047839000,-190.511213,0.00016054,2]
[424685268,1781047839000,-219.37370379,0.00015446,2]
[424685266,1781047839000,-179.16648547,0.00015446,2]
[424685271,1781047839000,-196.14360037,0.00015446,2]
[424685281,1781047839000,-193.86757875,0.00016127,2]
[424685265,1781047839000,-181.009852,0.00015446,2]
[424685278,1781047839000,-333.10696377,0.00015627,2]
[424685276,1781047839000,-509.51850904,0.00015543,2]
[424685273,1781047839000,-163.60953812,0.00015446,2]
[424685239,1781047839000,-300.0,0.00014745,2]
[424685282,1781047839000,-200.91,0.00016128,3]
[424685284,1781047839000,-20032.28914395,0.00016138,2]
[424685286,1781047839000,-122677.7188968,0.00016138,2]
[424685296,1781047839000,-500.0,0.00016237,2]
[424685288,1781047839000,-200.0,0.00016227,2]
[424685295,1781047839000,-500.0,0.00016237,2]
[424685291,1781047839000,-500.0,0.00016237,2]
[424685293,1781047839000,-500.0,0.00016237,2]
[424685300,1781047839000,-500.0,0.00016237,2]
[424685298,1781047839000,-500.0,0.00016237,2]
[424685302,1781047839000,-501.73542076,0.00016337,2]
[424685304,1781047839000,-43542.1806755,0.00016351,2]
[424685305,1781047839000,-870.5516993,0.00016351,2]
[424685197,1781047839000,-500.0,0.00013667,2]
[424685289,1781047839000,-500.0,0.00016237,2]
[424685234,1781047839000,-300.0,0.00014745,2]
[424685275,1781047839000,-212.74645051,0.00015449,2]
[424685248,1781047839000,-300.0,0.00014745,2]
[424685258,1781047839000,-151.86890719,0.00015077,2]
[424685192,1781047839000,-151.0,0.00013392,2]
[424685202,1781047839000,-1648.76465959,0.00013882,2]
[424685199,1781047839000,-408.04440678,0.00013882,2]
[424685209,1781047839000,-482.5321779,0.00014084,2]
[424685211,1781047839000,-400.61092315,0.00014098,2]
[424685213,1781047839000,-500.0,0.00014215,2]
[424685222,1781047839000,-803.80167502,0.00014621,2]
[424685225,1781047839000,-300.0,0.00014745,2]
[424685243,1781047839000,-300.0,0.00014745,2]
[424685220,1781047839000,-201.66353175,0.00014621,2]
[424685227,1781047839000,-300.0,0.00014745,2]
[424685245,1781047839000,-300.0,0.00014745,2]
[424685256,1781047839000,-637.26772582,0.00015036,2]
[424685207,1781047839000,-151.0,0.00014013,2]
[424685215,1781047839000,-201.15157033,0.00014434,2]
[424685250,1781047839000,-300.0,0.00014745,2]
[424685223,1781047839000,-500.0,0.00014743,2]
[424685236,1781047839000,-300.0,0.00014745,2]
[424685229,1781047839000,-300.0,0.00014745,2]
[424685218,1781047839000,-309.32715798,0.00014612,2]
[424685216,1781047839000,-500.0,0.00014488,2]
[424685230,1781047839000,-300.0,0.00014745,2]
[424685238,1781047839000,-300.0,0.00014745,2]
[424685242,1781047839000,-300.0,0.00014745,2]
[424685232,1781047839000,-300.0,0.00014745,2]
[424685252,1781047839000,-500.0,0.00014762,2]
[424685247,1781047839000,-300.0,0.00014745,2]
[424685397,1781047840000,-500.0,0.00019178,2]
[424685383,1781047840000,-180.0,0.00019014,3]
[424685387,1781047840000,-825.0,0.0001904,2]
[424685360,1781047840000,-151.0,0.00017839,2]
[424685380,1781047840000,-821.31,0.0001863,2]
[424685385,1781047840000,-825.0,0.0001904,2]
[424685376,1781047840000,-256.29528383,0.00018273,2]
[424685378,1781047840000,-720.0,0.0001833,2]
[424685369,1781047840000,-151.0,0.00017839,2]
[424685363,1781047840000,-151.0,0.00017839,2]
[424685390,1781047840000,-281.54091306,0.000191,2]
[424685371,1781047840000,-292.0,0.00017839,2]
[424685381,1781047840000,-821.31,0.00018904,2]
[424685389,1781047840000,-825.0,0.00019062,2]
[424685408,1781047840000,-500.0,0.00019178,2]
[424685394,1781047840000,-204.20710309,0.00019102,2]
[424685392,1781047840000,-190.97155546,0.000191,2]
[424685403,1781047840000,-500.0,0.00019178,2]
[424685406,1781047840000,-500.0,0.00019178,2]
[424685409,1781047840000,-500.0,0.00019178,2]
[424685411,1781047840000,-500.0,0.00019178,2]
[424685413,1781047840000,-500.0,0.00019178,2]
[424685425,1781047840000,-500.0,0.00019178,2]
[424685427,1781047840000,-591.61,0.00019178,2]
[424685428,1781047840000,-500.0,0.00019178,2]
[424685417,1781047840000,-500.0,0.00019178,2]
[424685421,1781047840000,-644.43792411,0.00019178,2]
[424685362,1781047840000,-151.0,0.00017839,2]
[424685400,1781047840000,-500.0,0.00019178,2]
[424685365,1781047840000,-151.0,0.00017839,2]
[424685314,1781047840000,-187.218,0.00016397,2]
[424685352,1781047840000,-1860.79321551,0.0001761,2]
[424685419,1781047840000,-500.0,0.00019178,2]
[424685316,1781047840000,-179.05336854,0.00016438,2]
[424685318,1781047840000,-206.182,0.00016488,2]
[424685307,1781047840000,-3992.2154693,0.00016351,2]
[424685323,1781047840000,-600.0,0.00016664,2]
[424685320,1781047840000,-235.92914444,0.00016496,7]
[424685313,1781047840000,-183.782,0.00016397,2]
[424685309,1781047840000,-2186.74,0.00016397,2]
[424685311,1781047840000,-444.0,0.00016397,2]
[424685322,1781047840000,-209.1,0.00016532,2]
[424685325,1781047840000,-190.511213,0.00016678,2]
[424685327,1781047840000,-329.0,0.00016822,3]
[424685328,1781047840000,-151.0,0.00017177,2]
[424685337,1781047840000,-160.0,0.00017275,2]
[424685330,1781047840000,-417.15472785,0.00017275,2]
[424685335,1781047840000,-160.0,0.00017275,2]
[424685333,1781047840000,-160.0,0.00017275,2]
[424685341,1781047840000,-416.66666667,0.000173,2]
[424685347,1781047840000,-416.66666667,0.000175,2]
[424685348,1781047840000,-212.47056592,0.000176,2]
[424685339,1781047840000,-212.47056592,0.000173,2]
[424685343,1781047840000,-190.511213,0.00017301,2]
[424685350,1781047840000,-416.66666667,0.000176,2]
[424685345,1781047840000,-212.47056592,0.000175,2]
[424685354,1781047840000,-151.0,0.00017725,2]
[424685358,1781047840000,-151.0,0.00017839,2]
[424685356,1781047840000,-416.66666667,0.000178,2]
[424685367,1781047840000,-151.0,0.00017839,2]
[424685374,1781047840000,-416.66666667,0.00018,2]
[424685373,1781047840000,-190.511213,0.00017924,2]
[424685423,1781047840000,-500.0,0.00019178,2]
[424685415,1781047840000,-634.90938561,0.00019178,2]
[424685433,1781047840000,-501.84,0.00019178,2]
[424685499,1781047840000,-500.0,0.00019178,2]
[424685493,1781047840000,-500.0,0.00019178,2]
[424685501,1781047840000,-500.0,0.00019178,2]
[424685497,1781047840000,-500.0,0.00019178,2]
[424685503,1781047840000,-500.0,0.00019178,2]
[424685505,1781047840000,-500.0,0.00019178,2]
[424685506,1781047840000,-500.0,0.00019178,2]
[424685514,1781047840000,-557.06,0.00019178,2]
[424685508,1781047840000,-500.0,0.00019178,2]
[424685516,1781047840000,-500.0,0.00019178,2]
[424685512,1781047840000,-500.0,0.00019178,2]
[424685510,1781047840000,-500.0,0.00019178,2]
[424685518,1781047840000,-500.0,0.00019178,2]
[424685527,1781047840000,-500.0,0.00019178,2]
[424685520,1781047840000,-500.0,0.00019178,2]
[424685529,1781047840000,-701.75,0.00019178,2]
[424685524,1781047840000,-543.08,0.00019178,2]
[424685525,1781047840000,-731.11,0.00019178,2]
[424685522,1781047840000,-269.85,0.00019178,2]
[424685533,1781047840000,-591.14,0.00019178,2]
[424685536,1781047840000,-500.0,0.00019178,2]
[424685531,1781047840000,-5953.8,0.00019178,2]
[424685544,1781047840000,-500.0,0.00019178,2]